bitfinex-derivatives/quotes_BTCF0:USTF0_20250722
["timestamp","ask_amount","ask_price","bid_price","bid_amount"]
[1753224673382,0.198675,119940.0,119930.0,1.30377428]
[1753224674981,0.198675,119940.0,119930.0,1.29075006]
[1753224675188,0.198675,119940.0,119930.0,1.30377428]
[1753224675688,0.660658,119940.0,119930.0,0.41460576]
[1753224675986,0.4652215,119940.0,119930.0,0.58129466]
[1753224676188,0.4652215,119940.0,119930.0,0.41460576]
[1753224676382,0.4542515,119940.0,119930.0,0.35497888]
[1753224676988,0.4542515,119940.0,119930.0,0.41462661]
[1753224677686,0.4542515,119940.0,119930.0,0.58131551]
[1753224677884,0.4390715,119940.0,119930.0,0.58131551]
[1753224678386,0.4390715,119940.0,119930.0,0.37490901]
[1753224678586,0.4390715,119940.0,119930.0,0.58131551]
[1753224680887,0.232665,119940.0,119930.0,0.58131551]
[1753224681189,0.4390715,119940.0,119930.0,0.581319]
[1753224683983,0.232665,119940.0,119930.0,0.581319]
[1753224684387,0.4390715,119940.0,119930.0,0.581319]
[1753224684687,0.198675,119940.0,119930.0,0.581319]
[1753224684888,0.198675,119940.0,119930.0,0.72807777]
[1753224685288,0.198675,119940.0,119930.0,0.52167127]
[1753224685491,0.198675,119940.0,119930.0,0.58130958]
[1753224685691,0.198675,119940.0,119930.0,1.09723127]
[1753224687195,0.198675,119940.0,119930.0,1.16604223]
[1753224689497,0.2918716,119950.0,119940.0,0.289985]
[1753224689693,0.2916716,119950.0,119940.0,0.64762704]
[1753224690292,0.2916716,119950.0,119940.0,0.58799577]
[1753224690790,0.2916716,119950.0,119940.0,0.58999576]
[1753224690995,0.3126716,119950.0,119940.0,0.58999576]
[1753224691187,0.3216716,119950.0,119940.0,0.59099576]
[1753224692194,0.3126716,119950.0,119940.0,0.58999576]
[1753224692395,0.3126716,119950.0,119940.0,1.16551576]
[1753224693297,0.2916716,119950.0,119940.0,1.17351576]
[1753224693893,0.2916716,119950.0,119940.0,1.18451576]
[1753224694393,0.2926716,119950.0,119940.0,1.19251576]
[1753224696299,0.2510033,119950.0,119940.0,1.19251576]
[1753224696700,0.1676684,119950.0,119940.0,1.19251576]
[1753224697401,0.1676684,119950.0,119940.0,1.26709362]
[1753224697903,0.001,119950.0,119940.0,1.19251576]
[1753224698401,0.1676611,119950.0,119940.0,1.19251576]
[1753224699003,0.1676611,119950.0,119940.0,1.26709362]
[1753224699195,0.1676611,119950.0,119940.0,1.24422032]
[1753224699391,0.1676611,119950.0,119940.0,1.19243398]
[1753224699797,0.1676611,119950.0,119940.0,1.17941025]
[1753224699998,0.1676611,119950.0,119940.0,1.19243372]
[1753224703406,0.1676611,119950.0,119940.0,0.61699372]
[1753224703607,0.1676611,119950.0,119940.0,1.19239372]
[1753224708512,0.1676611,119950.0,119940.0,1.17937025]
[1753224708709,0.1676611,119950.0,119940.0,1.19239353]
[1753224709211,0.1676611,119950.0,119940.0,1.32993021]
[1753224710900,0.001,119950.0,119940.0,1.32993021]
[1753224711211,0.45656167,119960.0,119950.0,0.2535011]
[1753224711212,0.2085211,119960.0,119950.0,0.2535011]
[1753224711515,0.2083211,119960.0,119950.0,1.35899191]
[1753224711814,0.2083211,119960.0,119950.0,1.15261484]
[1753224712110,0.2083211,119960.0,119950.0,1.09306924]
[1753224713302,0.2083211,119960.0,119950.0,1.09406924]
[1753224715011,0.2083211,119960.0,119950.0,1.09402924]
[1753224717914,0.2083211,119960.0,119950.0,1.09402838]
[1753224720017,0.2083211,119960.0,119950.0,1.09398838]
[1753224720216,0.2083211,119960.0,119950.0,0.31241131]
[1753224720418,0.2241511,119960.0,119950.0,1.09394838]
[1753224723020,0.43052817,119960.0,119950.0,0.31241131]
[1753224723221,0.44701817,119960.0,119950.0,1.09394838]
[1753224724220,0.44701817,119960.0,119950.0,0.51878838]
[1753224724420,0.44701817,119960.0,119950.0,0.31241131]
[1753224724421,0.67888524,119960.0,119950.0,0.31241131]
[1753224724920,0.67888524,119960.0,119950.0,0.51878838]
[1753224725121,0.47250817,119960.0,119950.0,0.51878838]
[1753224725321,0.46219817,119960.0,119950.0,0.51878838]
[1753224725520,0.44701817,119960.0,119950.0,0.51878838]
[1753224725921,0.44701817,119960.0,119950.0,0.50902115]
[1753224726121,0.44701817,119960.0,119950.0,0.51878931]
[1753224726523,0.44701817,119960.0,119950.0,0.50576581]
[1753224726725,0.44701817,119960.0,119950.0,0.51878935]
[1753224728124,0.2406411,119960.0,119950.0,0.51878935]
[1753224728521,0.44701817,119960.0,119950.0,0.51878935]
[1753224728721,0.44701817,119960.0,119950.0,0.31241228]
[1753224729022,0.44701817,119960.0,119950.0,0.51878935]
[1753224729328,0.44701817,119960.0,119950.0,0.51878909]
[1753224730421,0.198979,119960.0,119950.0,0.51878909]
[1753224730625,0.182489,119960.0,119950.0,0.51878909]
[1753224733633,0.182489,119960.0,119950.0,1.09382909]
[1753224734129,0.38886607,119960.0,119950.0,1.09382909]
[1753224735030,0.38886607,119960.0,119950.0,1.07103817]
[1753224735328,0.38886607,119960.0,119950.0,1.0938284]
[1753224735528,0.38886607,119960.0,119950.0,1.08406116]
[1753224735728,0.38886607,119960.0,119950.0,1.0938284]
[1753224738126,0.40257607,119960.0,119950.0,1.0938284]
[1753224738429,0.40257607,119960.0,119950.0,1.16840626]
[1753224738620,0.196199,119960.0,119950.0,0.59336626]
[1753224738824,0.40257607,119960.0,119950.0,1.16836626]
[1753224740630,0.40257607,119960.0,119950.0,0.59336626]
[1753224742630,0.40257607,119960.0,119950.0,1.16828626]
[1753224743533,0.41775607,119960.0,119950.0,0.59336626]
[1753224744029,0.40257607,119960.0,119950.0,0.59336626]
[1753224744224,0.40257607,119960.0,119950.0,0.58359902]
[1753224744423,0.196199,119960.0,119950.0,0.59336691]
[1753224744623,0.40257607,119960.0,119950.0,0.59336691]
[1753224745532,0.40257607,119960.0,119950.0,0.51878905]
[1753224748232,0.196199,119960.0,119950.0,0.31241198]
[1753224748435,0.40257607,119960.0,119950.0,0.51878905]
[1753224750434,0.40257607,119960.0,119950.0,0.51878911]
[1753224753438,0.40257607,119960.0,119950.0,0.51878916]
[1753224754234,0.62413314,119960.0,119950.0,0.35212806]
[1753224754438,0.63270314,119960.0,119950.0,0.51878916]
[1753224754638,0.62413314,119960.0,119950.0,0.51878916]
[1753224755140,0.211379,119960.0,119950.0,0.51878916]
[1753224755338,0.40257607,119960.0,119950.0,0.51878916]
[1753224755739,0.40257607,119960.0,119950.0,0.49599817]
[1753224755940,0.40257607,119960.0,119950.0,0.57057603]
[1753224756141,0.40257607,119960.0,119950.0,0.49599817]
[1753224756639,0.40257607,119960.0,119950.0,0.57057603]
[1753224756841,0.60895314,119960.0,119950.0,0.2896211]
[1753224757043,0.40257607,119960.0,119950.0,0.49599817]
[1753224757233,0.196199,119960.0,119950.0,0.49599817]
[1753224757433,0.40257607,119960.0,119950.0,0.49599817]
[1753224761541,0.196199,119960.0,119950.0,0.49599817]
[1753224761742,0.40257607,119960.0,119950.0,0.49599817]
[1753224762642,0.196199,119960.0,119950.0,0.49599817]
[1753224762940,0.40257607,119960.0,119950.0,0.49599817]
[1753224766148,0.40257607,119960.0,119950.0,0.2896211]
[1753224766348,0.40257607,119960.0,119950.0,0.49599817]
[1753224767953,0.40257607,119960.0,119950.0,0.51878933]
[1753224768753,0.40257607,119960.0,119950.0,0.50902169]
[1753224768950,0.40257607,119960.0,119950.0,0.51878933]
[1753224770754,0.28989777,119970.0,119950.0,0.56929853]
[1753224771055,1.07264367,119970.0,119960.0,0.47969502]
[1753224771254,1.10104367,119970.0,119960.0,0.71987325]
[1753224771554,1.10104367,119970.0,119960.0,0.78046325]
[1753224771851,1.10104367,119970.0,119960.0,0.77069561]
[1753224772058,1.10104367,119970.0,119960.0,0.78046267]
[1753224772453,0.8946666,119970.0,119960.0,0.78046267]
[1753224772654,1.10104367,119970.0,119960.0,0.76743948]
[1753224772854,1.10104367,119970.0,119960.0,0.81484522]
[1753224773248,1.10204367,119970.0,119960.0,0.81484522]
[1753224773549,1.10204367,119970.0,119960.0,0.60846815]
[1753224773952,1.11004367,119970.0,119960.0,0.61046815]
[1753224774154,1.11704367,119970.0,119960.0,0.61046815]
[1753224774449,1.11704367,119970.0,119960.0,0.81684522]
[1753224774853,1.11704367,119970.0,119960.0,0.88361356]
[1753224775049,1.11704367,119970.0,119960.0,0.88361335]
[1753224776056,1.11704367,119970.0,119960.0,0.67723628]
[1753224779351,1.11704367,119970.0,119960.0,0.61753563]
[1753224779660,1.11704367,119970.0,119960.0,0.67722534]
[1753224780855,0.9106666,119970.0,119960.0,0.65443497]
[1753224781063,1.11704367,119970.0,119960.0,0.67722506]
[1753224781660,1.13222367,119970.0,119960.0,0.67722506]
[1753224784962,1.13222367,119970.0,119960.0,0.47084799]
[1753224785163,1.13222367,119970.0,119960.0,0.67722506]
[1753224789169,1.13222367,119970.0,119960.0,0.66745788]
[1753224789364,1.13222367,119970.0,119960.0,0.67722503]
[1753224791569,1.13202367,119970.0,119960.0,0.67722503]
[1753224793470,0.3512066,119970.0,119960.0,0.67722503]
[1753224793769,1.13198367,119970.0,119960.0,0.67722503]
[1753224794069,1.13198367,119970.0,119960.0,0.67722408]
[1753224794571,1.13198367,119970.0,119960.0,0.61753532]
[1753224795072,1.13198367,119970.0,119960.0,0.67722635]
[1753224795271,1.13198367,119970.0,119960.0,0.67722634]
[1753224796275,1.13198367,119970.0,119960.0,0.61753531]
[1753224796573,1.13198367,119970.0,119960.0,0.67722967]
[1753224797274,1.13198367,119970.0,119960.0,0.61753531]
[1753224797773,1.13198367,119970.0,119960.0,0.67723186]
[1753224798376,1.13198367,119970.0,119960.0,0.66420898]
[1753224798674,1.13198367,119970.0,119960.0,0.67723187]
[1753224799377,1.13198367,119970.0,119960.0,0.61753532]
[1753224799575,1.13198367,119970.0,119960.0,0.67723829]
[1753224799877,1.13198367,119970.0,119960.0,0.61753532]
[1753224800072,1.13198367,119970.0,119960.0,0.67723829]
[1753224800269,1.13198367,119970.0,119960.0,0.61753532]
[1753224800875,0.9256066,119970.0,119960.0,0.61753532]
[1753224801075,1.13198367,119970.0,119960.0,0.41115825]
[1753224801274,1.13198367,119970.0,119960.0,0.61753532]
[1753224801480,1.13198367,119970.0,119960.0,0.61753531]
[1753224803081,1.13186367,119970.0,119960.0,0.61753531]
[1753224803376,0.55758367,119970.0,119960.0,0.61753531]
[1753224803674,1.13186367,119970.0,119960.0,0.61753531]
[1753224804275,1.13752367,119970.0,119960.0,0.67724902]
[1753224805476,1.13752367,119970.0,119960.0,0.30422465]
[1753224807479,1.13752367,119970.0,119960.0,0.29120176]
[1753224807778,1.13752367,119970.0,119960.0,0.30422553]
[1753224809880,0.9311466,119970.0,119960.0,0.30422553]
[1753224810077,1.13752367,119970.0,119960.0,0.30422553]
[1753224810278,1.13752367,119970.0,119960.0,0.5106026]
[1753224810578,1.13752367,119970.0,119960.0,0.30422553]
[1753224814274,1.13752367,119970.0,119960.0,0.30422548]
[1753224816481,1.13752367,119970.0,119960.0,0.29445799]
[1753224816681,1.13752367,119970.0,119960.0,0.30422541]
[1753224818784,0.9311466,119970.0,119960.0,0.67724978]
[1753224818982,1.13752367,119970.0,119960.0,0.67724978]
[1753224819282,1.13752367,119970.0,119960.0,0.67724979]
[1753224820780,1.13752367,119970.0,119960.0,0.47087272]
[1753224820981,1.13752367,119970.0,119960.0,0.67724979]
[1753224822186,1.13752367,119970.0,119960.0,0.47087245]
[1753224822385,1.13752367,119970.0,119960.0,0.67724952]
[1753224825087,1.13752367,119970.0,119960.0,0.66422635]
[1753224825289,1.13752367,119970.0,119960.0,0.67724968]
[1753224825677,1.13752367,119970.0,119960.0,0.6674823]
[1753224825883,1.13752367,119970.0,119960.0,0.6772498]
[1753224826289,1.13752367,119970.0,119960.0,0.6674823]
[1753224826589,1.13752367,119970.0,119960.0,0.6772498]
[1753224829886,0.56324367,119970.0,119960.0,0.6772498]
[1753224830189,1.13720367,119970.0,119960.0,0.6772498]
[1753224830588,1.13154367,119970.0,119960.0,0.6772498]
[1753224833393,1.13150367,119970.0,119960.0,0.67724687]
[1753224834592,0.55758367,119970.0,119960.0,0.67724687]
[1753224834788,1.13150367,119970.0,119960.0,0.60776859]
[1753224835092,1.13150367,119970.0,119960.0,0.61753561]
[1753224835289,0.55758367,119970.0,119960.0,0.61753561]
[1753224835484,0.3360266,119970.0,119960.0,0.61753561]
[1753224835690,0.8977866,119970.0,119960.0,0.82391268]
[1753224835993,1.10416367,119970.0,119960.0,0.82391268]
[1753224838792,0.9056466,119970.0,119960.0,0.8836422]
[1753224838994,1.11202367,119970.0,119960.0,0.8836422]
[1753224839687,0.9056466,119970.0,119960.0,0.8836422]
[1753224839889,1.11202367,119970.0,119960.0,0.8836422]
[1753224840098,1.11202367,119970.0,119960.0,0.67726513]
[1753224841200,0.9056466,119970.0,119960.0,0.67726513]
[1753224841395,1.11202367,119970.0,119960.0,0.67726513]
[1753224842399,1.12720367,119970.0,119960.0,0.67726513]
[1753224842989,1.12720367,119970.0,119960.0,0.67726505]
[1753224846103,1.12720367,119970.0,119960.0,0.88364212]
[1753224846404,1.11202367,119970.0,119960.0,0.88364212]
[1753224846701,1.11202367,119970.0,119960.0,0.61753553]
[1753224847500,1.11202367,119970.0,119960.0,0.41115846]
[1753224847701,1.11202367,119970.0,119960.0,0.61753553]
[1753224848506,0.9056466,119970.0,119960.0,0.61753553]
[1753224848806,0.9056466,119970.0,119960.0,0.8239126]
[1753224849102,0.2501429,119980.0,119970.0,0.2805834]
[1753224849301,0.1666302,119980.0,119970.0,0.79070567]
[1753224849501,0.1666302,119980.0,119970.0,1.36438567]
[1753224850003,0.1666302,119980.0,119970.0,0.5843286]
[1753224850205,0.1666302,119980.0,119970.0,1.1580086]
[1753224850605,0.1746302,119980.0,119970.0,0.5853286]
[1753224850800,0.1746302,119980.0,119970.0,1.1590086]
[1753224851705,0.1716302,119980.0,119970.0,1.1590086]
[1753224851907,0.40037727,119980.0,119970.0,0.5853286]
[1753224852102,0.62555434,119980.0,119970.0,0.21231813]
[1753224852301,0.62555434,119980.0,119970.0,0.1535702]
[1753224852806,0.62555434,119980.0,119970.0,0.1290902]
[1753224853105,0.62555434,119980.0,119970.0,0.11932352]
[1753224853406,0.62555434,119980.0,119970.0,0.10630131]
[1753224853805,1.19915434,119980.0,119970.0,0.10630131]
[1753224855099,0.7864002,119980.0,119970.0,0.10630131]
[1753224855304,1.06158117,119980.0,119970.0,0.04667]
[1753224855608,1.06158117,119980.0,119970.0,0.10630131]
[1753224855808,1.06158117,119980.0,119970.0,0.04667]
[1753224857210,1.06158117,119980.0,119970.0,0.02379095]
[1753224859410,1.06158117,119980.0,119970.0,0.05925119]
[1753224860216,1.06058117,119980.0,119970.0,0.04848364]
[1753224860415,1.06258117,119980.0,119970.0,0.09320924]
[1753224861608,0.2078034,119970.0,119960.0,0.13661089]
[1753224861811,0.48298437,119970.0,119960.0,0.07653642]
[1753224862013,0.1666473,119960.0,119950.0,0.05963131]
[1753224862213,0.1666611,119950.0,119940.0,0.12978131]
[1753224862415,1.01536207,119950.0,119940.0,0.11395]
[1753224863118,0.44184207,119950.0,119940.0,0.11395]
[1753224863418,1.01540207,119950.0,119940.0,0.11395]
[1753224863718,1.01740207,119950.0,119940.0,0.12095]
[1753224864912,1.01940207,119950.0,119940.0,0.14195]
[1753224865620,1.02127207,119950.0,119940.0,0.14195]
[1753224867316,1.02127207,119950.0,119940.0,0.16762535]
[1753224867517,1.02430207,119950.0,119940.0,0.16762535]
[1753224872117,0.7491211,119950.0,119940.0,0.16762535]
[1753224872417,1.02430207,119950.0,119940.0,0.12382535]
[1753224873618,1.02430207,119950.0,119940.0,0.13685169]
[1753224874510,1.02430207,119950.0,119940.0,0.12382535]
[1753224874712,1.02430207,119950.0,119940.0,0.13685176]
[1753224875117,1.02430207,119950.0,119940.0,0.12382535]
[1753224875322,1.02430207,119950.0,119940.0,0.1368517]
[1753224875823,1.02430207,119950.0,119940.0,0.028]
[1753224876821,1.02430207,119950.0,119940.0,0.05777585]
[1753224877421,1.02430207,119950.0,119940.0,0.07080263]
[1753224878218,1.02430207,119950.0,119940.0,0.09625217]
[1753224878624,1.02430207,119950.0,119940.0,0.07080263]
[1753224878815,1.02430207,119950.0,119940.0,0.05777585]
[1753224882121,1.02430207,119950.0,119940.0,0.07267044]
[1753224882524,1.02430207,119950.0,119940.0,0.09602044]
[1753224883127,1.02430207,119950.0,119940.0,0.13087044]
[1753224883340,1.02430207,119950.0,119940.0,0.14389756]
[1753224883728,1.02430207,119950.0,119940.0,0.13087044]
[1753224883929,1.02430207,119950.0,119940.0,0.14389756]
[1753224884123,0.45070207,119950.0,119940.0,0.14389756]
[1753224884329,1.02442207,119950.0,119940.0,0.15475756]
[1753224884830,0.45070207,119950.0,119940.0,0.19959756]
[1753224885020,0.7473711,119950.0,119940.0,0.19959756]
[1753224885222,0.95380188,119950.0,119940.0,0.40602834]
[1753224885422,0.1736511,119950.0,119940.0,0.40602834]
[1753224885623,0.95380188,119950.0,119940.0,0.40602834]
[1753224885827,0.1736511,119950.0,119940.0,0.77913422]
[1753224886026,0.7443811,119950.0,119940.0,0.77914123]
[1753224886226,0.7443811,119950.0,119940.0,0.73446378]
[1753224886427,0.7443811,119950.0,119940.0,0.528033]
[1753224886628,0.1727511,119950.0,119940.0,0.528033]
[1753224886828,0.95294188,119950.0,119940.0,0.528033]
[1753224887332,0.7465111,119950.0,119940.0,0.65645702]
[1753224889734,0.7444211,119950.0,119940.0,0.65645702]
[1753224889935,0.7444211,119950.0,119940.0,0.66622647]
[1753224890536,0.1706611,119950.0,119940.0,0.66622647]
[1753224890736,0.7443411,119950.0,119940.0,0.66622647]
[1753224893034,0.7443411,119950.0,119940.0,0.6434299]
[1753224893235,0.7443411,119950.0,119940.0,0.66622487]
[1753224894538,0.1706611,119950.0,119940.0,0.66622487]
[1753224894831,0.1706611,119950.0,119940.0,0.60659356]
[1753224895437,0.1706612,119950.0,119940.0,0.60659356]
[1753224895639,0.1706612,119950.0,119940.0,0.68117142]
[1753224895936,0.004,119950.0,119940.0,0.68117142]
[1753224897032,0.004,119950.0,119940.0,0.66814572]
[1753224897237,0.004,119950.0,119940.0,0.65837645]
[1753224897435,0.823826,119960.0,119950.0,0.1666612]
[1753224897738,0.823626,119960.0,119950.0,0.55578469]
[1753224898639,0.823626,119960.0,119950.0,0.57278469]
[1753224898640,0.825626,119960.0,119950.0,0.57278469]
[1753224899641,0.251986,119960.0,119950.0,0.57278469]
[1753224901642,0.251986,119960.0,119950.0,0.2975612]
[1753224901845,0.251986,119960.0,119950.0,0.57278469]
[1753224904347,0.251986,119960.0,119950.0,0.58580762]
[1753224904950,0.251986,119960.0,119950.0,0.59557482]
[1753224905248,0.251986,119960.0,119950.0,0.65506618]
[1753224907946,0.825506,119960.0,119950.0,0.65506618]
[1753224909544,0.825506,119960.0,119950.0,0.63227605]
[1753224909850,0.825506,119960.0,119950.0,0.65506618]
[1753224914257,0.825506,119960.0,119950.0,0.59557482]
[1753224916056,0.832026,119960.0,119950.0,0.59557482]
[1753224918862,0.832026,119960.0,119950.0,0.58255206]
[1753224919162,1.24843454,119960.0,119950.0,0.13052053]
[1753224919352,1.24843454,119960.0,119950.0,0.19533102]
[1753224919558,1.24843454,119960.0,119950.0,0.19980919]
[1753224919760,1.24843454,119960.0,119950.0,0.10885133]
[1753224919951,1.24843454,119960.0,119950.0,0.15757741]
[1753224920363,0.67499454,119960.0,119950.0,0.15757741]
[1753224920861,1.24843454,119960.0,119950.0,0.16785741]
[1753224921057,1.24843454,119960.0,119950.0,0.15757741]
[1753224921259,1.11084801,119960.0,119950.0,0.09937741]
[1753224921461,1.11084801,119960.0,119950.0,0.08960924]
[1753224921964,1.38614002,119960.0,119950.0,0.08960924]
[1753224922261,1.38614002,119960.0,119950.0,0.03002316]
[1753224922653,1.11084801,119960.0,119950.0,0.03002316]
[1753224923259,1.11084801,119960.0,119950.0,0.07474123]
[1753224923564,1.11084801,119960.0,119950.0,0.08451079]
[1753224923953,1.11084801,119960.0,119950.0,0.10782079]
[1753224924159,1.11084801,119960.0,119950.0,0.14368079]
[1753224925159,0.53740801,119960.0,119950.0,0.14368079]
[1753224925354,1.11084801,119960.0,119950.0,0.14368079]
[1753224927662,1.11084801,119960.0,119950.0,0.13391123]
[1753224927862,1.11084801,119960.0,119950.0,0.13391363]
[1753224929967,1.11084801,119960.0,119950.0,0.1539628]
[1753224930169,1.11084801,119960.0,119950.0,0.1436828]
[1753224930363,1.11084801,119960.0,119950.0,0.0845128]
[1753224930562,1.11084801,119960.0,119950.0,0.07474363]
[1753224931066,1.38614002,119960.0,119950.0,0.07474388]
[1753224931463,0.166675,119940.0,119930.0,0.09427442]
[1753224931659,1.01540701,119940.0,119930.0,0.10392381]
[1753224931860,1.01540701,119940.0,119930.0,0.09364381]
[1753224932259,1.01540701,119940.0,119930.0,0.05917]
[1753224933269,1.14241951,119940.0,119930.0,0.08317]
[1753224933469,1.14241951,119940.0,119930.0,0.09345]
[1753224933659,1.14241951,119940.0,119930.0,0.07445]
[1753224933865,1.14241951,119940.0,119930.0,0.07545]
[1753224934272,1.14041951,119940.0,119930.0,0.07045]
[1753224934471,1.14241951,119940.0,119930.0,0.07145]
[1753224936169,1.14241951,119940.0,119920.0,0.032322]
[1753224936170,0.175849,119930.0,119920.0,0.032322]
[1753224936473,0.175849,119930.0,119920.0,0.022042]
[1753224936474,1.06976101,119930.0,119920.0,0.022042]
[1753224936774,0.2336029,119920.0,119910.0,0.04705009]
[1753224936973,0.50889491,119920.0,119910.0,0.04388]
[1753224937175,0.50889491,119920.0,119910.0,0.02122]
[1753224937375,0.1973268,119910.0,119900.0,0.11019956]
[1753224937571,0.8013268,119910.0,119900.0,0.11019956]
[1753224938067,1.08234881,119910.0,119900.0,0.08753956]
[1753224938271,1.08234881,119910.0,119900.0,0.16365741]
[1753224938573,1.08234881,119910.0,119900.0,0.09733785]
[1753224938773,1.08234881,119910.0,119900.0,0.10832785]
[1753224939171,1.08234881,119910.0,119900.0,0.08145785]
[1753224939377,1.08434881,119910.0,119900.0,0.0779692]
[1753224939569,1.08434881,119910.0,119900.0,0.02]
[1753224940076,0.2423807,119900.0,119890.0,0.03744]
[1753224940276,0.2423946,119890.0,119880.0,0.09475401]
[1753224940475,1.09112661,119890.0,119880.0,0.09475401]
[1753224940873,1.09112661,119890.0,119880.0,0.13487401]
[1753224941469,0.8158346,119890.0,119880.0,0.13487401]
[1753224941669,1.09112661,119890.0,119880.0,0.09475401]
[1753224941869,1.09112661,119890.0,119880.0,0.03751448]
[1753224942477,1.09312661,119890.0,119880.0,0.06178254]
[1753224942670,1.09312661,119890.0,119880.0,0.03951448]
[1753224943076,1.09312661,119890.0,119880.0,0.06385448]
[1753224943383,1.09512661,119890.0,119880.0,0.06685448]
[1753224943770,1.09512661,119890.0,119880.0,0.04251448]
[1753224943771,0.2463946,119890.0,119880.0,0.04251448]
[1753224943968,0.52168661,119890.0,119880.0,0.04251448]
[1753224944174,1.09524661,119890.0,119880.0,0.13279438]
[1753224944376,1.09524661,119890.0,119880.0,0.07784448]
[1753224945177,0.52168661,119890.0,119880.0,0.07784448]
[1753224945481,1.09524661,119890.0,119880.0,0.07784448]
[1753224947481,1.09524661,119890.0,119880.0,0.10756669]
[1753224948183,1.09528661,119890.0,119880.0,0.10756669]
[1753224948882,1.09528661,119890.0,119880.0,0.17335312]
[1753224949081,1.09528661,119890.0,119880.0,0.1863862]
[1753224949683,0.8199946,119890.0,119880.0,0.1863862]
[1753224949983,1.09528661,119890.0,119880.0,0.1863862]
[1753224951184,1.09600661,119890.0,119880.0,0.1863862]
[1753224952282,1.09600661,119890.0,119880.0,0.15666399]
[1753224953382,1.09600661,119890.0,119880.0,0.14363091]
[1753224953982,1.09600661,119890.0,119880.0,0.15666409]
[1753224955382,1.09600661,119890.0,119880.0,0.15666412]
[1753224955583,0.8207146,119890.0,119880.0,0.15666412]
[1753224955783,1.09600661,119890.0,119880.0,0.15666412]
[1753224956881,0.8207146,119890.0,119880.0,0.15666412]
[1753224957082,1.09600661,119890.0,119880.0,0.15666412]
[1753224958282,0.8207146,119890.0,119880.0,0.15666412]
[1753224958487,1.09600661,119890.0,119880.0,0.15666412]
[1753224960283,1.09600661,119890.0,119880.0,0.18638633]
[1753224960989,1.09600661,119890.0,119880.0,0.19678412]
[1753224961185,1.09600661,119890.0,119880.0,0.22650633]
[1753224962885,1.09600661,119890.0,119880.0,0.11361633]
[1753224963193,1.09600661,119890.0,119880.0,0.08389412]
[1753224963591,1.09600661,119890.0,119880.0,0.07086091]
[1753224963794,1.09600661,119890.0,119880.0,0.07576475]
[1753224964091,1.09600661,119890.0,119880.0,0.01303384]
[1753224964684,1.09600661,119890.0,119880.0,4e-08]
[1753224964883,1.09606693,119890.0,119880.0,4e-08]
[1753224966093,1.09606693,119890.0,119880.0,0.02972225]
[1753224967289,1.09606693,119890.0,119880.0,0.06716225]
[1753224968490,0.52174693,119890.0,119880.0,0.06716225]
[1753224968793,1.09778693,119890.0,119880.0,0.07835225]
[1753224969689,1.08965693,119890.0,119880.0,0.14852225]
[1753224970397,0.51361693,119890.0,119880.0,0.14852225]
[1753224970597,1.08957693,119890.0,119880.0,0.14852225]
[1753224971297,1.08957693,119890.0,119880.0,0.11880004]
[1753224972096,1.08957693,119890.0,119880.0,0.16337579]
[1753224972799,1.08957693,119890.0,119880.0,0.16337575]
[1753224973497,1.08917693,119890.0,119880.0,0.16337575]
[1753224975597,1.08897693,119890.0,119880.0,0.16337575]
[1753224976699,1.08897693,119890.0,119880.0,0.17609104]
[1753224979403,1.08873693,119890.0,119880.0,0.17609104]
[1753224980005,0.51361693,119890.0,119880.0,0.17609104]
[1753224980206,1.08865693,119890.0,119880.0,0.17609104]
[1753224981807,1.08865693,119890.0,119880.0,0.16337575]
[1753224982106,1.08865693,119890.0,119880.0,0.17609015]
[1753224982297,1.08841693,119890.0,119880.0,0.17609015]
[1753224982500,1.08841693,119890.0,119880.0,0.17609048]
[1753224982808,0.51361693,119890.0,119880.0,0.17609048]
[1753224983107,1.08833693,119890.0,119880.0,0.17609048]
[1753224984907,1.08833693,119890.0,119880.0,0.17609128]
[1753224985611,1.07946693,119890.0,119880.0,0.17609128]
[1753224985807,0.17080492,119890.0,119880.0,0.57356604]
[1753224986312,0.74528492,119890.0,119880.0,0.6330202]
[1753224987608,0.74528492,119890.0,119880.0,0.64279415]
[1753224987811,0.17080492,119890.0,119880.0,0.64279415]
[1753224988010,0.74528492,119890.0,119880.0,0.58333999]
[1753224989002,0.17080492,119890.0,119880.0,0.75016399]
[1753224989202,0.74520492,119890.0,119880.0,0.75016399]
[1753224990401,0.74520492,119890.0,119880.0,0.47487198]
[1753224990714,0.74520492,119890.0,119880.0,0.75016399]
[1753224991007,0.74520492,119890.0,119880.0,0.75014669]
[1753224991209,0.17080492,119890.0,119880.0,0.75014669]
[1753224991408,0.74780492,119890.0,119880.0,0.75014669]
[1753224991706,0.74780492,119890.0,119880.0,0.75014249]
[1753224991907,0.17080492,119890.0,119880.0,0.75014249]
[1753224992108,0.74776492,119890.0,119880.0,0.75014249]
[1753224992308,0.74776492,119890.0,119880.0,0.80979787]
[1753224992509,0.76309492,119890.0,119880.0,0.64297387]
[1753224995812,0.76309492,119890.0,119880.0,0.64294775]
[1753224996909,0.77495492,119890.0,119880.0,0.64294775]
[1753224998010,0.77495492,119890.0,119880.0,0.36765574]
[1753224998204,0.79815492,119890.0,119880.0,0.64294775]
[1753224998909,0.79815492,119890.0,119880.0,0.47618925]
[1753224999112,0.79815492,119890.0,119880.0,0.64294775]
[1753224999408,0.79815492,119890.0,119880.0,0.47618925]
[1753224999909,0.79815492,119890.0,119880.0,0.45372127]
[1753225000111,0.79815492,119890.0,119880.0,0.47610121]
[1753225001613,1.08072693,119890.0,119880.0,0.2008092]
[1753225002913,1.08072693,119890.0,119880.0,0.18820281]
[1753225003215,0.80543492,119890.0,119880.0,0.20080966]
[1753225003514,0.79815492,119890.0,119880.0,0.20080966]
[1753225005417,0.80543492,119890.0,119880.0,0.20080966]
[1753225005616,1.08072693,119890.0,119880.0,0.20080966]
[1753225006517,1.08072693,119890.0,119880.0,0.20068966]
[1753225009115,1.08072693,119890.0,119880.0,0.1410604]
[1753225009317,1.08072693,119890.0,119880.0,0.14127005]
[1753225009516,1.08072693,119890.0,119880.0,0.20294722]
[1753225009717,1.08072693,119890.0,119880.0,0.20294773]
[1753225010220,1.08072693,119890.0,119880.0,0.20394773]
[1753225011420,0.80543492,119890.0,119880.0,0.20394773]
[1753225011720,1.08072693,119890.0,119880.0,0.20394773]
[1753225012423,1.08072693,119890.0,119880.0,0.20381596]
[1753225014926,1.08072693,119890.0,119880.0,0.15722596]
[1753225015226,1.08072693,119890.0,119880.0,0.15723633]
[1753225016325,0.50176693,119890.0,119880.0,0.15623633]
[1753225016625,1.08196693,119890.0,119880.0,0.15623633]
[1753225018221,1.08196693,119890.0,119880.0,0.14343234]
[1753225018525,1.08196693,119890.0,119880.0,0.15624513]
[1753225018921,1.08196693,119890.0,119880.0,0.15624458]
[1753225019124,1.35725894,119890.0,119880.0,0.02258615]
[1753225019317,0.1894463,119860.0,119850.0,0.11451786]
[1753225019519,1.11465831,119860.0,119850.0,0.15249786]
[1753225019725,1.11465831,119860.0,119850.0,0.12851786]
[1753225019924,1.11465831,119860.0,119850.0,0.04510105]
[1753225020125,0.8533763,119860.0,119850.0,0.04510105]
[1753225020326,1.12866831,119860.0,119850.0,0.02966105]
[1753225020730,1.13266831,119860.0,119850.0,0.03266105]